bitfinex/quotes_BTCUSD_20230907
["timestamp","ask_amount","ask_price","bid_price","bid_amount"]
[1694121041544,0.381,26286.0,26283.0,0.04457167]
[1694121041545,0.192,26284.0,26283.0,0.04457167]
[1694121041842,0.58055322,26284.0,26283.0,0.04457167]
[1694121042432,0.62055322,26284.0,26283.0,0.03767248]
[1694121042603,0.62055322,26284.0,26279.0,0.00098686]
[1694121042604,0.64455322,26284.0,26279.0,0.00098686]
[1694121042826,0.408374,26284.0,26283.0,0.03551076]
[1694121043046,0.408374,26284.0,26280.0,0.03457533]
[1694121043256,0.59855322,26282.0,26277.0,0.493]
[1694121043468,0.17842129,26281.0,26277.0,0.00098375]
[1694121043682,0.57955322,26280.0,26274.0,0.493]
[1694121043920,0.36842129,26279.0,26274.0,0.493]
[1694121044173,0.191,26277.0,26275.0,0.03268229]
[1694121044427,0.023,26276.0,26275.0,0.03268229]
[1694121044607,0.213,26276.0,26275.0,0.03268229]
[1694121044846,0.19,26276.0,26275.0,0.03268229]
[1694121045101,0.024,26281.0,26280.0,0.493]
[1694121045373,0.1905,26276.0,26270.0,0.00099682]
[1694121045625,0.1905,26276.0,26271.0,0.493]
[1694121045626,0.02,26276.0,26271.0,0.493]
[1694121045832,0.3815,26275.0,26267.0,0.00098542]
[1694121046072,0.02,26272.0,26267.0,0.00098542]
[1694121046292,0.92547451,26271.0,26264.0,0.48898542]
[1694121046490,0.02,26270.0,26263.0,0.66928442]
[1694121046745,0.42855322,26266.0,26263.0,0.020099]
[1694121046949,0.06,26264.0,26263.0,0.020099]
[1694121047232,0.60397451,26264.0,26263.0,0.02108754]
[1694121047401,0.06,26261.0,26260.0,0.020099]
[1694121047615,0.62697451,26261.0,26260.0,0.020099]
[1694121047839,0.02,26258.0,26257.0,0.020099]
[1694121048148,0.60397451,26258.0,26257.0,0.020099]
[1694121048358,1.00847451,26258.0,26257.0,0.020099]
[1694121048515,0.79305322,26258.0,26257.0,0.020099]
[1694121048771,0.79305322,26258.0,26257.0,0.04915415]
[1694121049154,0.85305322,26258.0,26257.0,0.04915415]
[1694121049360,1.00556122,26258.0,26257.0,0.04915415]
[1694121049577,0.98956122,26258.0,26257.0,0.04915415]
[1694121049788,1.02956122,26258.0,26257.0,0.04915415]
[1694121050290,0.02,26253.0,26248.0,0.66018442]
[1694121050514,0.54397451,26252.0,26248.0,0.50908442]
[1694121050748,0.3815,26251.0,26249.0,0.48898542]
[1694121051025,0.54397451,26250.0,26248.0,0.020099]
[1694121051174,0.023,26249.0,26248.0,0.020099]
[1694121051388,0.41155322,26249.0,26248.0,0.020099]
[1694121051605,0.41155322,26249.0,26248.0,0.50908442]
[1694121051823,0.004,26252.0,26251.0,0.50898542]
[1694121052051,0.06,26268.0,26259.0,0.48898542]
[1694121052272,0.02,26271.0,26260.0,0.12281159]
[1694121052273,0.44855322,26266.0,26260.0,0.12281159]
[1694121052500,0.382,26264.0,26260.0,0.12281159]
[1694121052719,0.38855322,26263.0,26260.0,0.12281159]
[1694121052919,0.38855322,26263.0,26259.0,0.48898542]
[1694121053129,0.38855322,26260.0,26258.0,0.00099615]
[1694121053381,0.38855322,26260.0,26252.0,0.151]
[1694121053382,0.54103222,26263.0,26261.0,0.48898542]
[1694121053558,0.73153222,26263.0,26261.0,0.61179701]
[1694121053791,0.75553222,26263.0,26261.0,0.48898542]
[1694121054024,0.02,26259.0,26255.0,0.48997975]
[1694121054441,0.402,26257.0,26253.0,0.48898542]
[1694121055095,0.38855322,26256.0,26253.0,0.48898542]
[1694121055323,0.023,26255.0,26253.0,0.48898542]
[1694121055525,0.38855322,26254.0,26253.0,0.48898542]
[1694121055751,0.79355322,26254.0,26253.0,0.48898542]
[1694121055970,0.91214806,26254.0,26253.0,0.48898542]
[1694121056386,1.06467806,26254.0,26253.0,0.48898542]
[1694121056610,0.60205322,26254.0,26253.0,0.48898542]
[1694121057054,0.74464806,26254.0,26250.0,0.48898542]
[1694121057469,0.19842129,26253.0,26250.0,0.48898542]
[1694121057586,0.192,26252.0,26250.0,0.48898542]
[1694121057780,0.41155322,26251.0,26250.0,0.48898542]
[1694121058010,0.60205322,26251.0,26250.0,0.48898542]
[1694121058223,0.1905,26251.0,26250.0,0.48898542]
[1694121058436,0.04,26257.0,26249.0,1.13211534]
[1694121058437,0.06,26259.0,26253.0,0.48898542]
[1694121058657,0.42855322,26257.0,26254.0,0.12281159]
[1694121058876,0.192,26256.0,26254.0,0.12281159]
[1694121059140,0.38855322,26255.0,26253.0,0.48898542]
[1694121059377,0.46678,26263.0,26254.0,1.0]
[1694121059650,0.475678,26262.0,26254.0,1.0]
[1694121059878,0.41255322,26259.0,26255.0,0.12281159]
[1694121060116,0.41255322,26259.0,26254.0,1.02]
[1694121060117,0.023,26258.0,26254.0,1.02]
[1694121060398,0.014,26255.0,26254.0,1.08]
[1694121060601,0.42555322,26255.0,26254.0,1.08]
[1694121060815,0.41155322,26255.0,26254.0,1.08]
[1694121061024,0.1905,26257.0,26255.0,0.02]
[1694121061269,0.38855322,26256.0,26255.0,0.02]
[1694121062172,0.152519,26256.0,26255.0,0.22281159]
[1694121062386,0.003,26256.0,26255.0,0.81983899]
[1694121062615,0.19,26259.0,26258.0,1.66]
[1694121062841,0.03017333,26267.0,26261.0,1.02]
[1694121063047,0.38855322,26266.0,26264.0,1.54]
[1694121063260,0.38855322,26267.0,26265.0,0.12281159]
[1694121063710,0.76855322,26266.0,26264.0,1.54]
[1694121064374,0.76855322,26266.0,26265.0,0.001]
[1694121064818,0.76855322,26266.0,26264.0,1.54]
[1694121065042,0.76855322,26266.0,26265.0,0.04]
[1694121065629,0.77155322,26266.0,26265.0,0.041]
[1694121066131,0.92102322,26266.0,26265.0,0.04]
[1694121066301,0.94402322,26266.0,26265.0,0.04]
[1694121066440,0.94402322,26266.0,26264.0,1.39704865]
[1694121066441,1.20297456,26266.0,26264.0,1.39704865]
[1694121066676,0.023,26265.0,26264.0,1.39604865]
[1694121066869,0.75985322,26265.0,26264.0,1.39604865]
[1694121067096,0.54047,26266.0,26265.0,0.06]
[1694121067097,0.53547,26266.0,26265.0,0.06]
[1694121067328,0.003,26266.0,26265.0,0.63136481]
[1694121067540,0.0748,26278.0,26265.0,0.63136481]
[1694121067541,0.0201,26278.0,26276.0,0.93604865]
[1694121067769,0.0201,26278.0,26277.0,0.12281159]
[1694121068212,0.3991,26278.0,26277.0,0.12281159]
[1694121068418,0.78765322,26278.0,26276.0,0.93604865]
[1694121068632,0.38855322,26277.0,26276.0,0.93604865]
[1694121069505,0.38855322,26277.0,26276.0,0.95604865]
[1694121069943,0.3991,26278.0,26277.0,0.08]
[1694121070143,0.2336,26278.0,26277.0,0.20281159]
[1694121070355,0.2096,26278.0,26277.0,0.08]
[1694121071328,0.2336,26278.0,26277.0,0.081]
[1694121071681,0.2576,26278.0,26277.0,0.082]
[1694121073287,0.2806,26278.0,26277.0,0.082]
[1694121074156,0.2806,26278.0,26277.0,0.062]
[1694121074379,0.2806,26278.0,26274.0,0.06]
[1694121074380,0.66915322,26278.0,26274.0,0.06]
[1694121074598,0.2806,26278.0,26277.0,1.50098561]
[1694121074812,0.2806,26278.0,26277.0,1.47604865]
[1694121075271,0.408998,26278.0,26277.0,1.47604865]
[1694121075479,0.432998,26278.0,26277.0,1.47604865]
[1694121075924,0.408998,26278.0,26277.0,1.47604865]
[1694121076355,0.432998,26278.0,26277.0,1.47704865]
[1694121076783,0.2576,26278.0,26277.0,1.47704865]
[1694121077023,0.0681,26278.0,26277.0,1.47704865]
[1694121077902,0.0681,26278.0,26277.0,1.94560187]
[1694121078124,0.0201,26283.0,26282.0,1.47604865]
[1694121078368,0.2096,26283.0,26282.0,1.59886024]
[1694121078584,0.2096,26283.0,26282.0,1.47604865]
[1694121079227,0.0441,26283.0,26282.0,1.51804865]
[1694121079867,0.0681,26283.0,26282.0,1.90860187]
[1694121080103,0.0681,26283.0,26282.0,1.52004865]
[1694121080547,0.45665322,26283.0,26282.0,1.40004865]
[1694121080830,1.51348051,26283.0,26282.0,0.004]
[1694121081038,1.30306122,26283.0,26282.0,0.004]
[1694121081266,0.68977451,26283.0,26270.0,1.25399666]
[1694121081526,0.38855322,26275.0,26269.0,0.00948]
[1694121081720,0.38855322,26275.0,26266.0,0.56]
[1694121081721,0.17842129,26274.0,26266.0,1.31399666]
[1694121081940,0.38855322,26270.0,26267.0,0.06]
[1694121082144,0.15542129,26269.0,26267.0,0.02423206]
[1694121082349,0.38855322,26268.0,26267.0,0.02423206]
[1694121082577,0.54397451,26268.0,26267.0,0.06]
[1694121082814,0.41155322,26268.0,26267.0,0.06]
[1694121083033,0.82011822,26268.0,26266.0,1.31399666]
[1694121083260,0.82011822,26268.0,26262.0,1.33497954]
[1694121083261,0.323,26267.0,26262.0,1.33497954]
[1694121083471,0.323,26267.0,26265.0,1.33399666]
[1694121083472,0.54397451,26266.0,26265.0,1.33399666]
[1694121083690,0.38,26265.0,26262.0,0.00098288]
[1694121083904,0.38855322,26263.0,26262.0,0.00098288]
[1694121084155,0.38855322,26263.0,26262.0,0.08]
[1694121084156,0.41155322,26263.0,26262.0,0.08]
[1694121085088,0.43555322,26263.0,26262.0,0.081]
[1694121085290,0.91390722,26263.0,26262.0,0.081]
[1694121085506,0.56404222,26263.0,26260.0,1.25399666]
[1694121085711,0.023,26262.0,26260.0,1.25399666]
[1694121085968,0.57855322,26261.0,26260.0,1.35399666]
[1694121086180,0.60155322,26261.0,26260.0,1.35399666]
[1694121086849,0.60155322,26261.0,26260.0,1.34899666]
[1694121087265,0.60155322,26261.0,26260.0,1.34999666]
[1694121087697,0.60155322,26261.0,26260.0,1.34899666]
[1694121087917,0.62555322,26261.0,26260.0,1.34899666]
[1694121088154,0.048,26261.0,26260.0,2.02528147]
[1694121088587,0.0309625,26271.0,26269.0,0.02]
[1694121088824,0.0309625,26271.0,26270.0,0.12281159]
[1694121089063,0.9,26282.0,26267.0,1.24899666]
[1694121089298,0.9,26282.0,26267.0,1.30899666]
[1694121089299,0.3795,26270.0,26267.0,1.30899666]
[1694121089548,0.3795,26270.0,26265.0,0.00098872]
[1694121089776,2.03829222,26269.0,26265.0,0.00098872]
[1694121090002,0.68855322,26269.0,26264.0,0.06]
[1694121090216,0.3795,26267.0,26264.0,0.06]
[1694121090456,0.41155322,26266.0,26264.0,0.06]
[1694121090686,0.41155322,26266.0,26265.0,1.32899666]
[1694121091178,0.41155322,26266.0,26265.0,1.33099666]
[1694121091656,0.41155322,26266.0,26265.0,1.32899666]
[1694121092072,0.43555322,26266.0,26265.0,1.33099666]
[1694121092517,0.43555322,26266.0,26265.0,1.29627343]
[1694121092967,0.45955322,26266.0,26265.0,1.29827343]
[1694121093198,0.41155322,26266.0,26265.0,1.29427343]
[1694121093426,0.45755322,26266.0,26265.0,0.04927677]
[1694121093652,0.43555322,26266.0,26265.0,0.04727677]
[1694121093872,0.41155322,26266.0,26265.0,0.04527677]
[1694121094116,0.49798518,26266.0,26262.0,1.32899666]
[1694121094359,2.378153,26266.0,26265.0,0.01126132]
[1694121094594,2.791216,26266.0,26265.0,0.002]
[1694121095121,2.791216,26266.0,26256.0,0.06]
[1694121095122,3.553216,26266.0,26260.0,0.00098262]
[1694121095131,0.406,26264.0,26260.0,0.00098262]
[1694121095267,0.68,26263.0,26257.0,0.08]
[1694121095479,0.68,26263.0,26258.0,0.75399666]
[1694121095712,0.15542129,26262.0,26261.0,0.02419857]
[1694121096051,0.19,26261.0,26258.0,1.24899666]
[1694121096223,0.38,26261.0,26257.0,0.00099851]
[1694121096459,0.38,26261.0,26258.0,1.32399666]
[1694121096460,0.023,26260.0,26258.0,1.32399666]
[1694121096958,0.023,26260.0,26258.0,1.24899666]
[1694121097196,0.023,26260.0,26258.0,1.32399666]
[1694121097700,0.042,26260.0,26258.0,1.31499666]
[1694121098223,0.042,26260.0,26258.0,0.001]
[1694121098470,0.38855322,26259.0,26258.0,0.002]
[1694121098728,0.73734322,26259.0,26258.0,0.002]
[1694121098982,0.75840922,26259.0,26258.0,0.002]
[1694121099226,0.68299122,26259.0,26258.0,0.001]
[1694121099435,3.70911014,26259.0,26255.0,1.23899666]
[1694121099663,3.70911014,26259.0,26255.0,0.75399666]
[1694121099664,0.38855322,26256.0,26255.0,0.75399666]
[1694121099867,0.41155322,26256.0,26255.0,0.75399666]
[1694121100536,0.41155322,26256.0,26253.0,0.02]
[1694121100760,0.023,26255.0,26253.0,0.075]
[1694121100971,0.38855322,26254.0,26253.0,0.075]
[1694121101190,0.79155322,26254.0,26253.0,0.075]
[1694121101667,0.55105127,26277.0,26252.0,1.23399666]
[1694121101879,0.38855322,26254.0,26253.0,1.73542129]
[1694121102145,0.09075156,26268.0,26256.0,1.02]
[1694121102329,0.38855322,26263.0,26257.0,0.23542129]
[1694121102542,0.42740854,26263.0,26257.0,0.23542129]
[1694121102767,0.1905,26260.0,26257.0,0.23542129]
[1694121102974,0.38855322,26259.0,26257.0,0.08]
[1694121103204,0.57905322,26259.0,26257.0,0.08]
[1694121103411,0.73157822,26259.0,26257.0,0.08]
[1694121103810,0.73157822,26259.0,26257.0,0.104]
[1694121104230,0.023,26258.0,26257.0,0.104]
[1694121104436,0.41155322,26258.0,26257.0,0.128]
[1694121104646,0.41155322,26258.0,26257.0,0.104]
[1694121104861,0.41155322,26258.0,26257.0,0.128]
[1694121105506,0.41155322,26258.0,26257.0,0.104]
[1694121105935,0.41355322,26258.0,26257.0,0.128]
[1694121106162,3.15776922,26258.0,26257.0,0.104]
[1694121106388,3.15976922,26258.0,26257.0,0.048]
[1694121106614,3.39423554,26258.0,26254.0,0.5]
[1694121106844,0.38855322,26255.0,26253.0,1.02680656]
[1694121107062,0.41155322,26254.0,26253.0,0.02680656]
[1694121107307,0.44416292,26254.0,26253.0,0.02581484]
[1694121107544,0.44416292,26254.0,26249.0,1.10857255]
[1694121107545,0.71155322,26254.0,26249.0,1.08098454]
[1694121107770,0.38855322,26252.0,26249.0,1.08098454]
[1694121107983,0.023,26251.0,26250.0,0.02]
[1694121108206,0.023,26251.0,26241.0,0.00761]
[1694121108207,2.69890521,26251.0,26241.0,0.00761]
[1694121108479,2.69890521,26251.0,26236.0,0.29465865]
[1694121108480,0.02,26240.0,26236.0,0.020301]
[1694121108895,0.02,26240.0,26224.0,0.0076]
[1694121108896,0.9402197,26239.0,26224.0,0.0076]
[1694121109049,0.9402197,26239.0,26220.0,0.06]
[1694121109050,0.02,26225.0,26216.0,0.22190162]
[1694121109255,0.5,26232.0,26219.0,0.34807265]
[1694121109256,0.0990371,26224.0,26219.0,0.34807265]
[1694121109399,0.13320612,26224.0,26219.0,0.33361932]
[1694121109677,0.382,26221.0,26219.0,0.32861932]
[1694121109863,0.44416292,26220.0,26219.0,0.32861932]
[1694121110092,0.42386192,26220.0,26219.0,0.32861932]
[1694121110328,0.38855322,26220.0,26219.0,0.32861932]
[1694121110535,0.54128922,26220.0,26219.0,0.38861932]
[1694121110779,0.54128922,26220.0,26219.0,0.48769932]
[1694121111002,0.38855322,26220.0,26219.0,0.40861932]
[1694121111308,0.383,26221.0,26220.0,0.08]
[1694121111516,0.1905,26221.0,26220.0,0.08]
[1694121111944,0.57905322,26221.0,26220.0,0.08]
[1694121112185,0.57905322,26221.0,26219.0,0.38861932]
[1694121112186,0.60205322,26221.0,26219.0,0.38861932]
[1694121112396,0.2135,26221.0,26220.0,0.06]
[1694121112823,0.1925,26220.0,26219.0,0.40861932]
[1694121113023,0.60605322,26220.0,26219.0,0.39361932]
[1694121113246,0.60405322,26220.0,26219.0,0.38861932]
[1694121114132,0.60605322,26220.0,26219.0,0.38861932]
[1694121114328,0.60605322,26220.0,26219.0,0.39361932]
[1694121114329,0.60805322,26220.0,26219.0,0.39361932]
[1694121114545,0.60605322,26220.0,26219.0,0.39361932]
[1694121115466,0.60605322,26220.0,26219.0,0.40561932]
[1694121115684,0.60905322,26220.0,26219.0,0.41061932]
[1694121115907,0.60905322,26220.0,26219.0,0.34561932]
[1694121116162,0.05981,26206.0,26189.0,0.763674]
[1694121116432,0.02,26193.0,26185.0,0.02]
[1694121116691,0.00761,26194.0,26185.0,0.02]
[1694121116966,0.00761,26197.0,26193.0,0.36229343]
[1694121117126,0.00761,26197.0,26196.0,0.38229343]
[1694121117127,0.023,26197.0,26196.0,0.38229343]
[1694121117376,0.00761,26205.0,26203.0,0.32361932]
[1694121117666,0.7,26204.0,26199.0,0.32361932]
[1694121117898,0.8935,26204.0,26203.0,0.03867411]
[1694121118079,1.85835422,26204.0,26203.0,0.03867411]
[1694121118261,3.41249522,26204.0,26202.0,0.26895337]
[1694121118462,0.68855322,26203.0,26198.0,0.03867411]
[1694121118736,0.68855322,26203.0,26195.0,0.16018177]
[1694121118737,1.39704792,26203.0,26202.0,0.26895337]
[1694121119026,1.39704792,26203.0,26202.0,0.46304877]
[1694121119027,0.38855322,26203.0,26202.0,0.46304877]
[1694121119204,0.77505322,26203.0,26202.0,0.29762748]
[1694121119414,0.193,26203.0,26202.0,0.3454442]
[1694121119626,0.58155322,26203.0,26202.0,0.3454442]
[1694121119859,0.58155322,26203.0,26198.0,0.2702]
[1694121119860,2.15693832,26203.0,26198.0,0.2702]
[1694121120098,0.42116292,26202.0,26198.0,0.2702]
[1694121120336,0.38855322,26199.0,26198.0,0.2702]
[1694121120569,0.1935,26201.0,26200.0,0.31762748]
[1694121120570,0.58205322,26201.0,26200.0,0.31762748]
[1694121121030,0.58205322,26201.0,26200.0,0.31262748]
[1694121121529,0.58205322,26201.0,26200.0,0.25395337]
[1694121121938,0.60505322,26201.0,26200.0,0.29262748]
[1694121122150,0.90505322,26201.0,26200.0,0.29262748]
[1694121122372,0.90505322,26201.0,26200.0,0.31080179]
[1694121122596,0.41155322,26201.0,26200.0,0.31080179]
[1694121122863,0.79805322,26201.0,26200.0,0.31080179]
[1694121123090,0.79805322,26201.0,26200.0,0.35680179]
[1694121123091,0.80205322,26201.0,26200.0,0.35680179]
[1694121123564,0.80005322,26201.0,26200.0,0.33480179]
[1694121123826,0.02132589,26211.0,26200.0,0.33480179]
[1694121123827,0.10908103,26215.0,26214.0,0.30762748]
[1694121124017,0.00759,26229.0,26227.0,0.24895337]
[1694121124277,0.406,26241.0,26227.0,0.19146429]
[1694121124278,0.38855322,26228.0,26227.0,0.19146429]
[1694121124497,0.57805322,26228.0,26227.0,0.34688558]
[1694121124700,0.76755322,26228.0,26227.0,0.12281159]
[1694121124956,0.76755322,26228.0,26227.0,0.26345847]
[1694121125435,0.76755322,26228.0,26224.0,0.14064688]
[1694121125664,0.46720322,26225.0,26221.0,0.06]
[1694121125879,0.38855322,26223.0,26221.0,0.06]
[1694121126110,0.76755322,26223.0,26221.0,0.06]
[1694121126353,0.76755322,26223.0,26222.0,0.06]
[1694121126580,0.76755322,26223.0,26222.0,0.08]
[1694121126978,0.379,26223.0,26222.0,0.40265514]
[1694121126986,0.379,26223.0,26222.0,0.24763]
[1694121127189,0.38,26223.0,26222.0,0.08]
[1694121127378,0.38,26223.0,26222.0,0.10362636]
[1694121127582,0.38,26223.0,26222.0,0.22525636]
[1694121127806,1.04062451,26223.0,26220.0,0.1805]
[1694121127983,1.04062451,26223.0,26221.0,0.12064688]
[1694121127984,0.38855322,26222.0,26221.0,0.12064688]
[1694121128189,0.38855322,26222.0,26221.0,0.16332841]
[1694121128521,3.13276922,26222.0,26221.0,0.16332841]
[1694121128965,3.46335922,26222.0,26217.0,0.02099738]
[1694121129188,0.38855322,26219.0,26217.0,0.02099738]
[1694121129448,0.023,26218.0,26217.0,0.02099738]
[1694121129671,0.406,26217.0,26212.0,0.035]
[1694121129904,2.37621351,26218.0,26205.0,0.00763]
[1694121129905,0.00759,26212.0,26208.0,0.015]
[1694121130150,0.54397451,26211.0,26208.0,0.015]
[1694121130360,1.06805322,26210.0,26208.0,0.015]
[1694121130575,0.17842129,26209.0,26208.0,0.015]
[1694121130811,0.023,26209.0,26208.0,0.055]
[1694121131025,0.38,26210.0,26209.0,0.055]
[1694121131237,0.403,26210.0,26209.0,0.055]
[1694121131441,0.421,26210.0,26209.0,0.055]
[1694121131858,0.406,26210.0,26209.0,0.055]
[1694121132719,0.39,26210.0,26209.0,0.07]
[1694121132940,0.002,26210.0,26209.0,0.21281159]
[1694121133135,0.03028116,26221.0,26213.0,0.035]
[1694121133136,0.055,26214.0,26213.0,0.035]
[1694121133356,0.055,26214.0,26213.0,0.17781159]
[1694121133580,0.1755,26214.0,26202.0,0.25124]
[1694121133797,0.02,26209.0,26203.0,0.58861747]
[1694121134094,0.15542129,26208.0,26203.0,0.45683322]
[1694121134240,0.15542129,26208.0,26203.0,0.42691772]
[1694121134515,0.15542129,26208.0,26203.0,0.38855322]
[1694121134516,0.17542129,26208.0,26203.0,0.38855322]
[1694121135022,0.02,26205.0,26203.0,0.0383645]
[1694121135283,0.15542129,26208.0,26201.0,0.00099912]
[1694121135284,0.02,26207.0,26204.0,0.38855322]
[1694121135773,0.02,26206.0,26204.0,0.41595643]
[1694121136227,0.022,26205.0,26204.0,0.02740321]
[1694121136470,0.045,26205.0,26204.0,0.02740321]
[1694121136704,0.043,26205.0,26204.0,0.02740321]
[1694121136946,0.2185,26205.0,26204.0,0.012]
[1694121137375,0.411,26205.0,26204.0,0.036]
[1694121137828,0.2905,26205.0,26204.0,0.036]
[1694121138045,0.022,26205.0,26204.0,0.024]
[1694121138295,0.024,26205.0,26204.0,0.0863645]
[1694121138492,0.02,26210.0,26204.0,0.47491772]
[1694121138722,0.02,26210.0,26205.0,0.54972931]
[1694121140324,0.021,26210.0,26205.0,0.59872931]
[1694121140543,0.17842129,26210.0,26205.0,0.47591772]
[1694121140780,0.02,26206.0,26205.0,0.049]
[1694121141203,0.078,26208.0,26205.0,0.0873645]
[1694121141204,0.02,26207.0,26205.0,0.0873645]
[1694121141432,0.02,26207.0,26205.0,0.11639769]
[1694121141642,0.02,26207.0,26205.0,0.09239769]
[1694121142193,0.002,26206.0,26205.0,0.11639769]
[1694121142286,0.17542129,26207.0,26205.0,0.09239769]
[1694121142516,0.02,26206.0,26205.0,0.05303319]
[1694121142780,0.19942129,26206.0,26205.0,0.07703319]
[1694121143270,0.19942129,26206.0,26205.0,0.588398]
[1694121143271,0.001,26206.0,26205.0,0.588398]
[1694121143277,0.02,26219.0,26212.0,0.02]
[1694121143529,0.015,26219.0,26213.0,1.27434081]
[1694121143780,0.015,26219.0,26213.0,1.31270531]
[1694121144021,0.015,26219.0,26214.0,0.02883752]
[1694121144266,0.015,26219.0,26215.0,0.12281159]
[1694121144744,0.42023,26221.0,26215.0,0.25206546]
[1694121144986,0.015,26219.0,26215.0,0.11781159]
[1694121145229,0.015,26219.0,26214.0,0.45575524]
[1694121145477,0.17042129,26219.0,26214.0,0.45575524]
[1694121145722,0.015,26219.0,26214.0,0.45575524]
[1694121145971,0.015,26219.0,26215.0,0.025]
[1694121146222,0.015,26215.0,26214.0,0.05383752]
[1694121146964,0.015,26215.0,26214.0,0.07883752]
[1694121147237,0.2825,26215.0,26214.0,0.05383752]
[1694121147448,0.3055,26215.0,26214.0,0.07883752]
[1694121147686,0.205,26215.0,26214.0,0.07883752]
[1694121147938,0.015,26215.0,26214.0,0.05]
[1694121148175,0.015,26215.0,26214.0,0.07883752]
[1694121148655,0.015,26215.0,26214.0,0.02883752]
[1694121148892,0.015,26215.0,26214.0,0.07883752]
[1694121149124,0.015,26215.0,26214.0,0.05383752]
[1694121149900,0.116,26215.0,26214.0,0.07883752]
[1694121150140,0.00759,26224.0,26219.0,0.1]
[1694121150386,0.38855322,26223.0,26220.0,0.11781159]
[1694121150634,0.38855322,26223.0,26220.0,0.14653412]
[1694121150893,0.38,26222.0,26220.0,0.14653412]
[1694121151141,0.38,26222.0,26220.0,0.02872253]
[1694121151142,0.38855322,26221.0,26220.0,0.02872253]
[1694121151875,0.38855322,26221.0,26220.0,0.02372253]
[1694121152115,0.41155322,26221.0,26220.0,0.02372253]
[1694121152592,0.41155322,26221.0,26220.0,0.04872253]
[1694121152824,0.41155322,26221.0,26220.0,0.07372253]
[1694121153553,1.13774422,26221.0,26220.0,0.07372253]
[1694121153824,1.13774422,26221.0,26220.0,0.02844475]
[1694121153825,2.66695954,26221.0,26220.0,0.02844475]
[1694121154093,1.64578922,26221.0,26217.0,0.02098058]
[1694121154366,0.023,26220.0,26217.0,0.02]
[1694121154642,0.023,26220.0,26215.0,0.00098041]
[1694121154643,0.92397451,26219.0,26215.0,0.00098041]
[1694121154872,0.56697451,26218.0,26215.0,0.00098041]
[1694121155157,1.46283151,26218.0,26214.0,0.02]
[1694121155593,0.38,26216.0,26215.0,0.02715911]
[1694121155833,0.79155322,26216.0,26215.0,0.02715911]
[1694121156065,1.56873622,26216.0,26215.0,0.02715911]
[1694121156334,1.56873622,26216.0,26215.0,0.025]
[1694121156335,1.68271722,26216.0,26215.0,0.025]
[1694121156602,1.68271722,26216.0,26214.0,0.025]
[1694121156603,2.18709122,26216.0,26214.0,0.025]
[1694121156862,1.220992,26216.0,26215.0,0.025]
[1694121157104,0.405,26216.0,26215.0,0.025]
[1694121157354,1.201984,26216.0,26215.0,0.05215911]
[1694121157876,1.199984,26216.0,26215.0,0.02715911]
[1694121158106,1.027784,26216.0,26215.0,0.05215911]
[1694121158357,2.16860644,26216.0,26215.0,0.025]
[1694121158608,2.43052722,26216.0,26215.0,0.025]
[1694121158836,2.49238322,26216.0,26215.0,0.025]
[1694121159074,2.47359422,26216.0,26215.0,0.045]
[1694121159319,2.51345322,26216.0,26215.0,0.045]
[1694121159570,2.50963122,26216.0,26210.0,0.1]
[1694121159804,1.124,26216.0,26215.0,0.604]
[1694121160059,0.934,26216.0,26215.0,0.604]
[1694121160307,1.1245,26216.0,26215.0,0.604]
[1694121160559,4.41269051,26216.0,26215.0,0.004]
[1694121160807,4.64688214,26216.0,26215.0,0.004]
[1694121161066,4.64688214,26216.0,26210.0,0.1188053]
[1694121161067,4.61047214,26216.0,26210.0,0.1188053]
[1694121161363,4.54791892,26216.0,26215.0,0.002]
[1694121161595,1.44320292,26216.0,26215.0,0.002]
[1694121161807,1.44320292,26216.0,26210.0,0.00099371]
[1694121161808,4.54735922,26216.0,26210.0,0.02099371]
[1694121162034,0.38855322,26214.0,26210.0,0.02]
[1694121162254,0.404,26213.0,26210.0,0.02]
[1694121162478,0.38855322,26212.0,26210.0,0.02]
[1694121162706,0.023,26211.0,26210.0,0.02]
[1694121162930,1.98290122,26211.0,26208.0,0.02]
[1694121163154,0.41155322,26211.0,26210.0,0.02732811]
[1694121163385,0.703,26216.0,26212.0,0.02]
[1694121163588,0.38855322,26215.0,26213.0,0.11781159]
[1694121163807,0.381,26214.0,26212.0,0.02]
[1694121164022,0.38855322,26213.0,26212.0,0.02]
[1694121164232,0.39055322,26213.0,26212.0,0.02]
[1694121164753,0.54134422,26213.0,26212.0,0.04728976]
[1694121164987,0.54134422,26213.0,26212.0,0.02]
[1694121165315,0.54134422,26213.0,26212.0,0.044]
[1694121165538,0.56634422,26213.0,26212.0,0.045]
[1694121166034,0.56834422,26213.0,26212.0,0.069]
[1694121166988,0.56634422,26213.0,26212.0,0.045]
[1694121167396,0.56634422,26213.0,26212.0,0.07128976]
[1694121167625,0.66307864,26213.0,26212.0,0.09628976]
[1694121168000,1.86441464,26213.0,26212.0,0.09628976]
[1694121168226,1.98720264,26213.0,26212.0,0.07628976]
[1694121168448,1.46247722,26213.0,26212.0,0.069]
[1694121168671,0.56834422,26213.0,26212.0,0.069]
[1694121168909,0.56834422,26213.0,26212.0,0.07228976]
[1694121168910,0.56634422,26213.0,26212.0,0.07228976]
[1694121169125,0.56434422,26213.0,26212.0,0.04728976]
[1694121169345,0.56634422,26213.0,26212.0,0.07228976]
[1694121169801,1.23544122,26213.0,26212.0,0.07228976]
[1694121169992,1.44261822,26213.0,26212.0,0.07228976]
[1694121170212,1.44271222,26213.0,26212.0,0.07228976]
[1694121170435,1.44471222,26213.0,26212.0,0.09628976]
[1694121170644,1.42361522,26213.0,26212.0,0.07128976]
[1694121170858,1.42561522,26213.0,26212.0,0.09628976]
[1694121171079,1.42361522,26213.0,26212.0,0.07128976]
[1694121171529,1.42561522,26213.0,26212.0,0.09628976]
[1694121171739,1.44471322,26213.0,26212.0,0.09628976]
[1694121172168,3.49513154,26213.0,26212.0,0.07628976]
[1694121172376,3.79513154,26213.0,26212.0,0.07628976]
[1694121172590,3.79513154,26213.0,26212.0,0.049]
[1694121173516,3.61256022,26213.0,26212.0,0.049]